fUSD/lending_fUSD_20250404
["ID","MTS","AMOUNT","RATE_DAILY","PERIOD"]
[357104546,1743742293416,-1181.69,0.00054246,120]
[357104547,1743742293426,-1494.55,0.00054246,120]
[357104548,1743742293436,-2859.57,0.00054246,120]
[357104549,1743742293446,-1642.16,0.00054246,120]
[357104550,1743742293455,-1845.58,0.00054246,120]
[357104551,1743742293467,-500.0,0.00054246,120]
[357104552,1743742293476,-725.01,0.00054246,120]
[357104553,1743742293486,-1790.85,0.00054246,120]
[357104554,1743742293496,-1795.3,0.00054246,120]
[357104555,1743742293507,-2215.63,0.00054246,120]
[357104556,1743742293516,-500.0,0.00054246,120]
[357104557,1743742293526,-1621.94,0.00054246,120]
[357104558,1743742293535,-1984.67,0.00054246,120]
[357104559,1743742293545,-500.0,0.00054246,120]
[357104560,1743742293555,-1238.29,0.00054246,120]
[357104561,1743742293565,-2200.62,0.00054246,120]
[357104562,1743742293574,-534.24,0.00054246,120]
[357104563,1743742293585,-1910.5,0.00054246,120]
[357104564,1743742293595,-1140.44,0.00054246,120]
[357104565,1743742293605,-2219.86,0.00054246,120]
[357104566,1743742293615,-500.0,0.00054246,120]
[357104567,1743742293625,-2020.09,0.00054246,120]
[357104568,1743742293635,-2048.88,0.00054246,120]
[357104569,1743742293645,-804.71,0.00054246,120]
[357104570,1743742293655,-634.27,0.00054246,120]
[357104571,1743742293665,-2025.27,0.00054246,120]
[357104572,1743742293675,-558.62,0.00054246,120]
[357104573,1743742293684,-1033.99,0.00054246,120]
[357104574,1743742293695,-2611.84,0.00054246,120]
[357104575,1743742293705,-1942.56,0.00054246,120]
[357104576,1743742293715,-1677.91,0.00054246,120]
[357104577,1743742293725,-2219.22,0.00054246,120]
[357104578,1743742293735,-624.53,0.00054246,120]
[357104579,1743742293745,-2008.94,0.00054246,120]
[357104580,1743742293756,-751.55,0.00054246,120]
[357104581,1743742293766,-1907.67,0.00054246,120]
[357104582,1743742293775,-2210.43,0.00054246,120]
[357104583,1743742293785,-1861.33,0.00054246,120]
[357104584,1743742293796,-607.75,0.00054246,120]
[357104585,1743742293807,-10738.0,0.00054246,2]
[357104586,1743742293816,-525.26,0.00054246,120]
[357104587,1743742293826,-127491.97,0.00054246,7]
[357104588,1743742293836,-829.28,0.00054246,120]
[357104589,1743742293845,-583.75,0.00054246,120]
[357104590,1743742293854,-2229.15,0.00054246,120]
[357104591,1743742293865,-1669.74,0.00054246,120]
[357104592,1743742293874,-529.37,0.00054246,120]
[357104593,1743742293887,-150.0,0.0005425,39]
[357104594,1743742293897,-25000.0,0.0005444,60]
[357104595,1743742293906,-25000.0,0.0005444,60]
[357104596,1743742293915,-153.05828206,0.0005444,60]
[357104597,1743742293925,-11879.19403804,0.0005444,60]
[357104598,1743742293935,-1567.0,0.0005444,35]
[357104599,1743742293944,-19810.03552866,0.00054453,119]
[357104600,1743742293955,-19810.03552866,0.0005446,119]
[357104601,1743742293966,-200.0,0.0005446,119]
[357104602,1743742293976,-1559.97720013,0.00054462,119]
[357104603,1743742293986,-1559.97720013,0.00054465,119]
[357104604,1743742293995,-19810.03552866,0.00054474,119]
[357104605,1743742294004,-231.79920009,0.00054476,119]
[357104606,1743742294013,-447.77455413,0.00054477,119]
[357104607,1743742294023,-200.0,0.00054479,119]
[357104608,1743742294032,-447.77455413,0.00054481,119]
[357104609,1743742294041,-200.0,0.00054488,119]
[357104610,1743742294051,-1559.97720013,0.00054488,119]
[357104611,1743742294060,-200.0,0.00054491,119]
[357104612,1743742294070,-1559.97720013,0.00054494,119]
[357104613,1743742294080,-200.0,0.00054496,119]
[357104614,1743742294089,-1000000.0,0.000545,120]
[357104615,1743742294099,-5484.80933045,0.000545,120]
[357104616,1743742294108,-28964.0,0.000545,120]
[357104617,1743742294118,-235.19300919,0.000545,30]
[357104618,1743742294128,-200.0,0.00054504,119]
[357104619,1743742294137,-1627.45,0.0005452,120]
[357104620,1743742294147,-1661.534427,0.0005452,120]
[357104621,1743742294158,-1847.248262,0.0005452,120]
[357104622,1743742294167,-668.69,0.0005452,120]
[357104623,1743742294177,-500.0,0.0005452,120]
[357104624,1743742294187,-1018.55,0.0005452,10]
[357104625,1743742294196,-528.07,0.0005452,120]
[357104626,1743742294206,-500.0,0.0005452,30]
[357104627,1743742294216,-2140.33065279,0.0005452,2]
[357104628,1743742294226,-636.7,0.0005452,120]
[357104629,1743742294236,-2104.44,0.0005452,120]
[357104630,1743742294245,-1964.9,0.0005452,120]
[357104631,1743742294255,-3250.94,0.0005452,2]
[357104632,1743742294264,-633.58146781,0.0005452,120]
[357104633,1743742294273,-1041.18,0.0005452,120]
[357104634,1743742294282,-1836.7,0.0005452,120]
[357104635,1743742294291,-500.0,0.0005452,120]
[357104636,1743742294301,-561.86,0.0005452,120]
[357104637,1743742294311,-1026.47,0.0005452,120]
[357104638,1743742294321,-1708.57,0.0005452,120]
[357104639,1743742294330,-2260.17,0.0005452,120]
[357104640,1743742294340,-1847.64,0.0005452,120]
[357104641,1743742294349,-1600.29,0.0005452,120]
[357104642,1743742294359,-972.82,0.0005452,120]
[357104643,1743742294379,-1667.89,0.0005452,120]
[357104644,1743742294392,-1074.38,0.0005452,30]
[357104645,1743742294402,-2122.56,0.0005452,120]
[357104646,1743742294411,-500.0,0.0005452,120]
[357104647,1743742294421,-1956.99,0.0005452,120]
[357104648,1743742294431,-1120.02,0.0005452,120]
[357104649,1743742294442,-1669.42,0.0005452,120]
[357104650,1743742294452,-533.22,0.0005452,2]
[357104651,1743742294462,-2109.35,0.0005452,120]
[357104652,1743742294472,-2628.48,0.0005452,120]
[357104653,1743742294482,-560.52,0.0005452,120]
[357104654,1743742294493,-1936.83,0.0005452,120]
[357104655,1743742294503,-1759.76,0.0005452,120]
[357104656,1743742294513,-2302.46,0.0005452,120]
[357104657,1743742294523,-1845.54,0.0005452,120]
[357104658,1743742294533,-2235.82,0.0005452,120]
[357104659,1743742294543,-650.53,0.0005452,120]
[357104660,1743742294554,-1764.75,0.0005452,120]
[357104661,1743742294564,-2294.51,0.0005452,120]
[357104662,1743742294574,-1798.97,0.0005452,120]
[357104663,1743742294583,-2061.78,0.0005452,120]
[357104664,1743742294593,-2212.69,0.0005452,120]
[357104665,1743742294603,-2600.67,0.0005452,120]
[357104666,1743742294612,-1758.13,0.0005452,120]
[357104667,1743742294623,-2390.89,0.0005452,120]
[357104668,1743742294633,-1773.07,0.0005452,120]
[357104669,1743742294643,-1780.62,0.0005452,120]
[357104670,1743742294653,-2213.48,0.0005452,120]
[357104671,1743742294663,-1740.8,0.0005452,120]
[357104672,1743742294673,-1782.21,0.0005452,120]
[357104673,1743742294683,-2008.49,0.0005452,120]
[357104674,1743742294694,-810.96,0.0005452,120]
[357104675,1743742294704,-523.36,0.0005452,120]
[357104676,1743742294714,-2260.47,0.0005452,120]
[357104677,1743742294723,-668.1,0.0005452,120]
[357104678,1743742294733,-500.0,0.0005452,120]
[357104679,1743742294743,-2235.26,0.0005452,120]
[357104680,1743742294754,-2123.04,0.0005452,120]
[357104681,1743742294764,-1337.55,0.0005452,30]
[357104682,1743742294774,-1605.02,0.0005452,120]
[357104683,1743742294784,-1657.36,0.0005452,120]
[357104684,1743742294793,-1553.62,0.0005452,120]
[357104685,1743742294804,-1702.41,0.0005452,120]
[357104686,1743742294813,-500.0,0.0005452,120]
[357104687,1743742294823,-1286.62,0.0005452,120]
[357104688,1743742294833,-1768.28,0.0005452,120]
[357104689,1743742294842,-1152.52,0.0005452,120]
[357104690,1743742294852,-2735.4,0.0005452,120]
[357104691,1743742294862,-741.55,0.0005452,120]
[357104692,1743742294874,-2305.38,0.0005452,120]
[357104693,1743742294888,-1520.4,0.0005452,120]
[357104694,1743742294898,-1181.69,0.0005452,120]
[357104695,1743742294909,-1494.55,0.0005452,120]
[357104696,1743742294919,-2859.57,0.0005452,120]
[357104697,1743742294929,-1642.16,0.0005452,120]
[357104698,1743742294939,-1845.58,0.0005452,120]
[357104699,1743742294948,-500.0,0.0005452,120]
[357104700,1743742294960,-725.01,0.0005452,120]
[357104701,1743742294969,-1790.85,0.0005452,120]
[357104702,1743742294979,-1795.3,0.0005452,120]
[357104703,1743742294989,-2215.63,0.0005452,120]
[357104704,1743742294999,-500.0,0.0005452,120]
[357104705,1743742295009,-1621.94,0.0005452,120]
[357104706,1743742295018,-1984.67,0.0005452,120]
[357104707,1743742295028,-500.0,0.0005452,120]
[357104708,1743742295037,-1238.29,0.0005452,120]
[357104709,1743742295046,-2200.62,0.0005452,120]
[357104710,1743742295055,-534.24,0.0005452,120]
[357104711,1743742295066,-1910.5,0.0005452,120]
[357104712,1743742295075,-1140.44,0.0005452,120]
[357104713,1743742295085,-2219.86,0.0005452,120]
[357104714,1743742295095,-500.00573816,0.0005452,120]
[357104715,1743742295105,-2020.09,0.0005452,120]
[357104716,1743742295114,-2048.88,0.0005452,120]
[357104717,1743742295124,-804.71,0.0005452,120]
[357104718,1743742295134,-634.27,0.0005452,120]
[357104719,1743742295144,-2025.27,0.0005452,120]
[357104720,1743742295154,-558.62,0.0005452,120]
[357104721,1743742295164,-1033.99,0.0005452,120]
[357104722,1743742295174,-2611.84,0.0005452,120]
[357104723,1743742295183,-1942.56,0.0005452,120]
[357104724,1743742295192,-1677.91,0.0005452,120]
[357104725,1743742295202,-2219.22,0.0005452,120]
[357104726,1743742295211,-624.53,0.0005452,120]
[357104727,1743742295221,-2008.94,0.0005452,120]
[357104728,1743742295230,-751.55,0.0005452,120]
[357104729,1743742295239,-1907.67,0.0005452,120]
[357104730,1743742295249,-2210.43,0.0005452,120]
[357104731,1743742295259,-1861.33,0.0005452,120]
[357104732,1743742295268,-607.75,0.0005452,120]
[357104733,1743742295277,-10738.0,0.0005452,2]
[357104734,1743742295287,-525.26,0.0005452,120]
[357104735,1743742295295,-127491.97,0.0005452,7]
[357104736,1743742295304,-829.28,0.0005452,120]
[357104737,1743742295314,-583.75,0.0005452,120]
[357104738,1743742295323,-2229.15,0.0005452,120]
[357104739,1743742295332,-1669.74,0.0005452,120]
[357104740,1743742295341,-529.37,0.0005452,120]
[357104741,1743742295351,-293.85205115,0.00054521,119]
[357104742,1743742295360,-19810.03552866,0.00054533,119]
[357104743,1743742295369,-1559.97720013,0.00054534,119]
[357104744,1743742295378,-200.0,0.00054536,119]
[357104745,1743742295388,-200.0,0.0005454,119]
[357104746,1743742295397,-293.85205115,0.00054543,119]
[357104747,1743742295407,-200.0,0.00054548,119]
[357104748,1743742295416,-242.48130388,0.0005455,119]
[357104749,1743742295426,-293.85205115,0.00054557,119]
[357104750,1743742295435,-200.0,0.00054565,119]
[357104751,1743742295444,-231.79920009,0.00054572,119]
[357104752,1743742295454,-447.77455413,0.00054579,119]
[357104753,1743742295464,-1559.97720013,0.0005459,119]
[357104754,1743742295474,-242.48130388,0.00054594,119]
[357104755,1743742295637,-200.0,0.000546,119]
[357104756,1743742295647,-200.0,0.00054608,119]
[357104757,1743742295656,-231.79920009,0.00054613,119]
[357104758,1743742295665,-231.79920009,0.00054617,119]
[357104759,1743742295675,-200.0,0.00054642,119]
[357104760,1743742295684,-200.0,0.00054645,119]
[357104761,1743742295694,-293.85205115,0.00054648,119]
[357104762,1743742295703,-200.0,0.00054652,119]
[357104763,1743742295712,-200.0,0.00054656,119]
[357104764,1743742295721,-231.79920009,0.00054657,119]
[357104765,1743742295730,-19810.03552866,0.00054668,119]
[357104766,1743742295739,-200.0,0.00054674,119]
[357104767,1743742295749,-293.85205115,0.00054687,119]
[357104768,1743742295758,-200.0,0.00054689,119]
[357104769,1743742295767,-2512755.41,0.0005469,120]
[357104770,1743742295777,-1559.97720013,0.00054692,119]
[357104771,1743742295786,-242.48130388,0.00054694,119]
[357104772,1743742295795,-200.0,0.00054695,119]
[357104773,1743742295805,-242.48130388,0.00054698,119]
[357104774,1743742295814,-20000.0,0.000547,120]
[357104775,1743742295823,-242.48130388,0.00054701,119]
[357104776,1743742295833,-293.85205115,0.00054707,119]
[357104777,1743742295843,-200.0,0.00054709,119]
[357104778,1743742295851,-200.0,0.0005472,119]
[357104779,1743742295861,-200.0,0.00054721,119]
[357104780,1743742295870,-242.48130388,0.00054722,119]
[357104781,1743742295882,-447.77455413,0.0005473,119]
[357104782,1743742295892,-200.0,0.00054734,119]
[357104783,1743742295901,-19810.03552866,0.00054737,119]
[357104784,1743742295911,-200.0,0.0005474,119]
[357104785,1743742295926,-231.79920009,0.00054742,119]
[357104786,1743742295935,-200.0,0.00054748,119]
[357104787,1743742295945,-200.0,0.00054757,119]
[357104788,1743742295955,-447.77455413,0.00054759,119]
[357104789,1743742295964,-242.48130388,0.00054762,119]
[357104790,1743742295975,-200.0,0.00054762,119]
[357104791,1743742295984,-200.0,0.00054764,119]
[357104792,1743742295994,-400.0,0.0005477,7]
[357104793,1743742296006,-1559.97720013,0.00054771,119]
[357104794,1743742296015,-200.0,0.00054782,119]
[357104795,1743742296024,-293.85205115,0.00054791,119]
[357104796,1743742296033,-19810.03552866,0.00054793,119]
[357104797,1743742296043,-1053.10452671,0.00054794,120]
[357104798,1743742296052,-1000.0,0.00054794,120]
[357104799,1743742296062,-1067.29731681,0.00054794,120]
[357104800,1743742296074,-500.0,0.00054794,120]
[357104801,1743742296083,-1000.0,0.00054794,120]
[357104802,1743742296092,-1000.0,0.00054794,120]
[357104803,1743742296101,-1000.0,0.00054794,120]
[357104804,1743742296111,-1000.0,0.00054794,120]
[357104805,1743742296120,-1000.0,0.00054794,120]
[357104806,1743742296129,-681.05,0.00054794,120]
[357104807,1743742296138,-1627.45,0.00054794,120]
[357104808,1743742296148,-1661.534427,0.00054794,120]
[357104809,1743742296157,-1847.248262,0.00054794,120]
[357104810,1743742296167,-1000.0,0.00054794,2]
[357104811,1743742296176,-1000.0,0.00054794,2]
[357104812,1743742296186,-1000.0,0.00054794,2]
[357104813,1743742296195,-1000.0,0.00054794,2]
[357104814,1743742296204,-1000.0,0.00054794,2]
[357104815,1743742296214,-1000.0,0.00054794,2]
[357104816,1743742296223,-1000.0,0.00054794,2]
[357104817,1743742296232,-1000.0,0.00054794,2]
[357104818,1743742296241,-1095.76463397,0.00054794,2]
[357104819,1743742296251,-668.69,0.00054794,120]
[357104820,1743742296260,-500.0,0.00054794,120]
[357104821,1743742296269,-1018.55,0.00054794,10]
[357104822,1743742296278,-528.07,0.00054794,120]
[357104823,1743742296287,-546.6405376,0.00054794,30]
[357104824,1743742296297,-636.7,0.00054794,120]
[357104825,1743742296307,-2104.44,0.00054794,120]
[357104826,1743742296317,-1964.9,0.00054794,120]
[357104827,1743742296326,-3250.94,0.00054794,2]
[357104828,1743742296336,-1041.18,0.00054794,120]
[357104829,1743742296345,-1836.7,0.00054794,120]
[357104830,1743742296354,-500.0,0.00054794,120]
[357104831,1743742296363,-561.86,0.00054794,120]
[357104832,1743742296373,-1026.47,0.00054794,120]
[357104833,1743742296382,-1708.57,0.00054794,120]
[357104834,1743742296392,-2260.17,0.00054794,120]
[357104835,1743742296401,-1847.64,0.00054794,120]
[357104836,1743742296410,-1600.29,0.00054794,120]
[357104837,1743742296419,-972.82,0.00054794,120]
[357104838,1743742296429,-1667.89,0.00054794,120]
[357104839,1743742296438,-1074.38,0.00054794,30]
[357104840,1743742296447,-2122.56,0.00054794,120]
[357104841,1743742296456,-378.48399222,0.00054794,120]
[357104842,1743742296466,-1956.99,0.00054794,120]
[357104843,1743742296475,-1120.02,0.00054794,120]
[357104844,1743742296484,-1669.42,0.00054794,120]
[357104845,1743742296494,-533.22,0.00054794,2]
[357104846,1743742296503,-2109.35,0.00054794,120]
[357104847,1743742296512,-2628.48,0.00054794,120]
[357104848,1743742296521,-560.52,0.00054794,120]
[357104849,1743742296531,-1936.83,0.00054794,120]
[357104850,1743742296540,-1759.76,0.00054794,120]
[357104851,1743742296550,-2302.46,0.00054794,120]
[357104852,1743742296560,-1845.54,0.00054794,120]
[357104853,1743742296570,-2235.82,0.00054794,120]
[357104854,1743742296579,-650.53,0.00054794,120]
[357104855,1743742296589,-1764.75,0.00054794,120]
[357104856,1743742296599,-2294.51,0.00054794,120]
[357104857,1743742296608,-1798.97,0.00054794,120]
[357104858,1743742296618,-2061.78,0.00054794,120]
[357104859,1743742296627,-2212.69,0.00054794,120]
[357104860,1743742296636,-2600.67,0.00054794,120]
[357104861,1743742296645,-1758.13,0.00054794,120]
[357104862,1743742296655,-2390.89,0.00054794,120]
[357104863,1743742296664,-1773.07,0.00054794,120]
[357104864,1743742296674,-1780.62,0.00054794,120]
[357104865,1743742296684,-2213.48,0.00054794,120]
[357104866,1743742296693,-1740.8,0.00054794,120]
[357104867,1743742296702,-1782.21,0.00054794,120]
[357104868,1743742296712,-2008.49,0.00054794,120]
[357104869,1743742296721,-810.96,0.00054794,120]
[357104870,1743742296731,-523.36,0.00054794,120]
[357104871,1743742296740,-2260.47,0.00054794,120]
[357104872,1743742296750,-668.1,0.00054794,120]
[357104873,1743742296759,-500.0,0.00054794,120]
[357104874,1743742296769,-2235.26,0.00054794,120]
[357104875,1743742296778,-2123.04,0.00054794,120]
[357104876,1743742296788,-1337.55,0.00054794,30]
[357104877,1743742296798,-1605.02,0.00054794,120]
[357104878,1743742296808,-1657.36,0.00054794,120]
[357104879,1743742296818,-1702.41,0.00054794,120]
[357104880,1743742296828,-1553.62,0.00054794,120]
[357104881,1743742296838,-500.0,0.00054794,120]
[357104882,1743742296847,-1286.62,0.00054794,120]
[357104883,1743742296857,-1768.28,0.00054794,120]
[357104884,1743742296866,-1152.52,0.00054794,120]
[357104885,1743742296875,-2735.4,0.00054794,120]
[357104886,1743742296889,-741.55,0.00054794,120]
[357104887,1743742296898,-2305.38,0.00054794,120]
[357104888,1743742296908,-1520.4,0.00054794,120]
[357104889,1743742296919,-1181.69,0.00054794,120]
[357104890,1743742296928,-1494.55,0.00054794,120]
[357104891,1743742296938,-2859.57,0.00054794,120]
[357104892,1743742296947,-1642.16,0.00054794,120]
[357104893,1743742296956,-1845.58,0.00054794,120]
[357104894,1743742296966,-500.0,0.00054794,120]
[357104895,1743742296975,-725.01,0.00054794,120]
[357104896,1743742296984,-1790.85,0.00054794,120]
[357104897,1743742296994,-1795.3,0.00054794,120]
[357104898,1743742297003,-2215.63,0.00054794,120]
[357104899,1743742297013,-500.0,0.00054794,120]
[357104900,1743742297023,-1621.94,0.00054794,120]
[357104901,1743742297033,-1984.67,0.00054794,120]
[357104902,1743742297042,-500.0,0.00054794,120]
[357104903,1743742297052,-1238.29,0.00054794,120]
[357104904,1743742297061,-2200.62,0.00054794,120]
[357104905,1743742297070,-534.24,0.00054794,120]
[357104906,1743742297079,-1910.5,0.00054794,120]
[357104907,1743742297089,-1140.44,0.00054794,120]
[357104908,1743742297099,-2219.86,0.00054794,120]
[357104909,1743742297108,-2020.09,0.00054794,120]
[357104910,1743742297118,-2048.88,0.00054794,120]
[357104911,1743742297127,-804.71,0.00054794,120]
[357104912,1743742297136,-634.27,0.00054794,120]
[357104913,1743742297145,-2025.27,0.00054794,120]
[357104914,1743742297154,-558.62,0.00054794,120]
[357104915,1743742297163,-1033.99,0.00054794,120]
[357104916,1743742297172,-2611.84,0.00054794,120]
[357104917,1743742297182,-1942.56,0.00054794,120]
[357104918,1743742297191,-1677.91,0.00054794,120]
[357104919,1743742297200,-2219.22,0.00054794,120]
[357104920,1743742297209,-624.53,0.00054794,120]
[357104921,1743742297220,-2008.94,0.00054794,120]
[357104922,1743742297230,-751.55,0.00054794,120]
[357104923,1743742297239,-1907.67,0.00054794,120]
[357104924,1743742297249,-2210.43,0.00054794,120]
[357104925,1743742297258,-1861.33,0.00054794,120]
[357104926,1743742297267,-607.75,0.00054794,120]
[357104927,1743742297277,-10738.0,0.00054794,2]
[357104928,1743742297286,-525.26,0.00054794,120]
[357104929,1743742297295,-127491.97,0.00054794,7]
[357104930,1743742297305,-829.28,0.00054794,120]
[357104931,1743742297314,-583.75,0.00054794,120]
[357104932,1743742297323,-2229.15,0.00054794,120]
[357104933,1743742297332,-500.0,0.00054794,120]
[357104934,1743742297342,-500.0,0.00054794,120]
[357104935,1743742297351,-500.0,0.00054794,120]
[357104936,1743742297360,-500.0,0.00054794,120]
[357104937,1743742297370,-500.0,0.00054794,120]
[357104938,1743742297380,-500.0,0.00054794,120]
[357104939,1743742297389,-1669.74,0.00054794,120]
[357104940,1743742297398,-500.0,0.00054794,120]
[357104941,1743742297407,-500.0,0.00054794,120]
[357104942,1743742297417,-393.26144709,0.00054794,120]
[357104943,1743742297426,-529.37,0.00054794,120]
[357104944,1743742297435,-150.0,0.00054795,120]
[357104945,1743742297445,-150.0,0.00054795,120]
[357104946,1743742297454,-150.0,0.00054795,120]
[357104947,1743742297463,-150.0,0.00054795,120]
[357104948,1743742297472,-151.0,0.00054795,120]
[357104949,1743742297481,-151.0,0.00054795,120]
[357104950,1743742297491,-151.0,0.00054795,120]
[357104951,1743742297500,-151.0,0.00054795,120]
[357104952,1743742297509,-151.0,0.00054795,120]
[357104953,1743742297519,-151.0,0.00054795,120]
[357104954,1743742297528,-151.0,0.00054795,120]
[357104955,1743742297537,-168.694142,0.00054795,120]
[357104956,1743742297547,-150.0,0.00054795,120]
[357104957,1743742297556,-150.0,0.00054795,120]
[357104958,1743742297566,-500.0,0.00054795,120]
[357104959,1743742297575,-500.0,0.00054795,120]
[357104960,1743742297584,-500.0,0.00054795,120]
[357104961,1743742297594,-484.78871445,0.00054795,120]
[357104962,1743742297603,-500.0,0.00054795,120]
[357104963,1743742297612,-500.0,0.00054795,120]
[357104964,1743742297621,-500.0,0.00054795,120]
[357104965,1743742297630,-500.0,0.00054795,120]
[357104966,1743742297640,-500.0,0.00054795,120]
[357104967,1743742297649,-363.09843005,0.00054795,120]
[357104968,1743742297658,-150.0,0.00054795,120]
[357104969,1743742297667,-150.0,0.00054795,120]
[357104970,1743742297676,-150.0,0.00054795,120]
[357104971,1743742297686,-150.0,0.00054796,120]
[357104972,1743742297696,-150.0,0.00054796,120]
[357104973,1743742297706,-150.0,0.00054796,120]
[357104974,1743742297715,-150.0,0.00054796,120]
[357104975,1743742297725,-150.0,0.00054796,120]
[357104976,1743742297735,-150.0,0.00054796,120]
[357104977,1743742297744,-150.0,0.00054797,120]
[357104978,1743742297754,-150.0,0.00054797,120]
[357104979,1743742297763,-150.0,0.00054797,120]
[357104980,1743742297773,-150.0,0.00054797,120]
[357104981,1743742297782,-150.0,0.00054797,120]
[357104982,1743742297792,-150.0,0.00054797,120]
[357104983,1743742297802,-150.0,0.00054797,120]
[357104984,1743742297811,-150.0,0.00054798,120]
[357104985,1743742297821,-150.0,0.00054798,120]
[357104986,1743742297830,-150.0,0.00054798,120]
[357104987,1743742297840,-150.0,0.00054798,120]
[357104988,1743742297850,-150.0,0.00054798,120]
[357104989,1743742297859,-150.0,0.00054798,120]
[357104990,1743742297868,-150.0,0.00054798,120]
[357104991,1743742297880,-150.0,0.00054798,120]
[357104992,1743742297890,-150.0,0.00054799,120]
[357104993,1743742297899,-150.0,0.00054799,120]
[357104994,1743742298028,-150.0,0.00054799,120]
[357104995,1743742298039,-150.0,0.00054799,120]
[357104996,1743742298049,-150.0,0.00054799,120]
[357104997,1743742298060,-150.0,0.000548,120]
[357104998,1743742298070,-150.0,0.000548,120]
[357104999,1743742298080,-150.0,0.000548,120]
[357105000,1743742298090,-150.0,0.000548,120]
[357105001,1743742298100,-1043.0,0.000548,60]
[357105002,1743742298109,-612091.05662379,0.000548,120]
[357105003,1743742298119,-152.4659274,0.000548,120]
[357105004,1743742298129,-151.96727708,0.000548,120]
[357105005,1743742298139,-82186.67401536,0.000548,30]
[357105006,1743742298148,-150.0,0.000548,120]
[357105007,1743742298158,-150.0,0.000548,120]
[357105008,1743742298168,-150.0,0.000548,120]
[357105009,1743742298177,-150.0,0.000548,120]
[357105010,1743742298191,-150.0,0.00054801,120]
[357105011,1743742298201,-150.0,0.00054801,120]
[357105012,1743742298210,-150.0,0.00054801,120]
[357105013,1743742298220,-150.0,0.00054801,120]
[357105014,1743742298230,-150.0,0.00054801,120]
[357105015,1743742298239,-150.0,0.00054801,120]
[357105016,1743742298248,-150.0,0.00054802,120]
[357105017,1743742298258,-150.0,0.00054802,120]
[357105018,1743742298268,-150.0,0.00054802,120]
[357105019,1743742298277,-150.0,0.00054802,120]
[357105020,1743742298287,-150.0,0.00054802,120]
[357105021,1743742298296,-150.0,0.00054802,120]
[357105022,1743742298307,-150.0,0.00054802,120]
[357105023,1743742298316,-150.0,0.00054802,120]
[357105024,1743742298326,-150.0,0.00054803,120]
[357105025,1743742298335,-150.0,0.00054803,120]
[357105026,1743742298345,-150.0,0.00054803,120]
[357105027,1743742298354,-150.0,0.00054803,120]
[357105028,1743742298364,-150.0,0.00054803,120]
[357105029,1743742298374,-150.0,0.00054803,120]
[357105030,1743742298384,-150.0,0.00054804,120]
[357105031,1743742298394,-150.0,0.00054804,120]
[357105032,1743742298403,-150.0,0.00054804,120]
[357105033,1743742298412,-150.0,0.00054804,120]
[357105034,1743742298422,-150.0,0.00054804,120]
[357105035,1743742298431,-150.0,0.00054804,120]
[357105036,1743742298440,-150.0,0.00054805,120]
[357105037,1743742298450,-150.0,0.00054805,120]
[357105038,1743742298459,-150.0,0.00054805,120]
[357105039,1743742298469,-150.0,0.00054805,120]
[357105040,1743742298479,-150.0,0.00054805,120]
[357105041,1743742298488,-150.0,0.00054805,120]
[357105042,1743742298498,-150.0,0.00054805,120]
[357105043,1743742298507,-150.0,0.00054806,120]
[357105044,1743742298516,-150.0,0.00054806,120]
[357105045,1743742298525,-150.0,0.00054806,120]